[Event "44th Chess Olympiad Open 2022"]
[Site "Chennai"]
[Date "2022.07.30"]
[Round "2.14"]
[White "Yakubboev, Nodirbek"]
[Black "Nielsen, Hogni Egilstoft"]
[Result "1-0"]
[WhiteElo "2620"]
[BlackElo "2414"]
[Annotator "TA"]
[PlyCount "43"]
[EventDate "2022.??.??"]
[TimeControl "60"]

{[%evp 14,43,44,43,86,81,125,108,114,111,135,137,162,158,152,135,158,152,195,
203,205,193,192,129,131,127,133,139,173,167,665,661]} 1. Nf3 {[%emt 0:00:04]}
Nf6 {[%emt 0:00:19]} 2. c4 {[%emt 0:00:06]} e6 {[%emt 0:01:18]} 3. Nc3 {
[%emt 0:00:13]} d5 {[%emt 0:00:28]} 4. d4 {[%emt 0:00:17]} Be7 {[%emt 0:01:23]}
5. Bf4 {[%emt 0:02:15]} a6 {[%emt 0:09:35]} 6. e3 {[%emt 0:15:37]} Nbd7 {
[%emt 0:09:09]} 7. c5 {[%emt 0:15:35]} O-O {[%emt 0:14:09]} 8. Bd3 {[%emt 0:00:
00]} Re8 {[%emt 0:00:36] D37: Queen's Gambit Declined: 5 Bf4.} 9. O-O {[%emt 0:
00:00]} Nf8 {[%emt 0:04:19] [#]} 10. h3 $1 {[%emt 0:01:28]} Ng6 {[%emt 0:07:42]
White is better.} 11. Bh2 {[%emt 0:00:18] [#]} Bf8 $146 {[%emt 0:01:47]} ({
Predecessor:} 11... c6 12. b4 Nd7 13. e4 dxe4 14. Nxe4 Nf6 15. Nd6 Rf8 16. a3
Nd5 17. Re1 a5 {0-1 (61) Naumov,M (2099)-Khumnorkaew,T (2110) Bangkok 2020})
12. b4 {[%emt 0:00:47]} Bd7 {[%emt 0:13:01]} 13. a4 {[%emt 0:08:40]} b6 {
[%emt 0:07:26]} 14. Qc2 {[%emt 0:04:04]} bxc5 {[%emt 0:02:52]} 15. bxc5 {
[%emt 0:03:11]} ({Don't do} 15. dxc5 Qb8 $16) 15... Bc6 {[%emt 0:00:30]} 16.
Bxg6 {[%emt 0:00:54]} hxg6 {[%emt 0:00:10]} 17. Ne5 {[%emt 0:00:07]} Bb7 {
[%emt 0:03:20]} 18. c6 {[%emt 0:00:46]} ({White should play} 18. Rfb1 $18 Rb8
19. Na2) 18... Bc8 $16 {[%emt 0:00:07]} 19. a5 $36 {[%emt 0:00:13] White is on
the roll. 0x0.0013b9dc48f9dp-1022s more active pieces. The black rooks are
badly placed.} Bd6 {[%emt 0:03:23]} 20. Rfb1 {[%emt 0:06:16]} Kf8 {[%emt 0:07:
47]} 21. Na4 {[%emt 0:02:45]} Ng8 $2 {[%emt 0:02:21] [#]} (21... Kg8 22. Rb3
Qe7) 22. Nb6 $1 {[%emt 0:04:53] Weighted Error Value: White=0.05 (flawless) /
Black=0.73} 1-0

[Event "44th Chess Olympiad Open 2022"]
[Site "Chennai"]
[Date "2022.07.30"]
[Round "2.14"]
[White "Vakhidov, Jakhongir"]
[Black "Rodgaard, John"]
[Result "1-0"]
[WhiteElo "2564"]
[BlackElo "2324"]
[Annotator "TA"]
[PlyCount "144"]
[EventDate "2022.??.??"]
[TimeControl "60"]

{[%evp 15,144,18,11,6,18,33,21,8,32,33,29,37,37,20,31,-27,-4,-8,-7,0,-22,-30,0,
0,0,0,97,0,17,0,0,-19,14,30,34,25,35,30,33,54,56,37,24,20,34,34,41,47,42,0,8,
17,4,18,12,4,15,18,23,18,12,0,18,18,18,18,18,17,20,0,8,8,7,4,8,0,0,0,0,0,8,8,
43,43,43,43,43,43,43,43,43,14,14,14,61,61,61,61,61,22,50,23,22,28,27,14,15,8,8,
8,8,8,8,8,8,0,0,0,8,8,8,8,284,354,1471,1420,1062,854,661,654,716]} 1. c4 {
[%emt 0:00:14]} e6 {[%emt 0:00:34]} 2. Nc3 {[%emt 0:00:09]} d5 {[%emt 0:00:17]}
3. d4 {[%emt 0:00:10]} Nf6 {[%emt 0:01:03]} 4. cxd5 {[%emt 0:00:10]} exd5 {
[%emt 0:00:56]} 5. Bg5 {[%emt 0:00:11]} c6 {[%emt 0:02:13]} 6. e3 {[%emt 0:00:
00]} h6 {[%emt 0:03:45]} 7. Bh4 {[%emt 0:00:09]} Be7 {[%emt 0:01:04]} 8. Bd3 {
[%emt 0:00:14]} Ne4 {[%emt 0:05:40]} 9. Bxe7 {[%emt 0:01:46] D35: Queen's
Gambit Declined: Exchange Variation.} Qxe7 {[%emt 0:00:36]} 10. Bxe4 {[%emt 0:
00:00]} dxe4 {[%emt 0:00:23]} 11. Qc2 {[%emt 0:10:19] The position is equal.}
Bf5 {[%emt 0:24:19]} 12. Nge2 {[%emt 0:01:09]} O-O {[%emt 0:07:30]} 13. O-O {
[%emt 0:04:22]} Nd7 {[%emt 0:07:59]} 14. Ng3 {[%emt 0:03:48][%csl Ye4,Yf5]} Bg6
{[%emt 0:04:04] [#]} 15. Ngxe4 $146 {[%emt 0:10:46]} (15. Rad1 $14) ({
Predecessor:} 15. Rac1 Nf6 16. h3 Rfd8 17. Qa4 a5 18. a3 b5 19. Qc2 Rac8 20. a4
Qe8 21. Rfd1 {½-½ (61) Ralls,R (2488)-Van Bommel,T (2166) LSS email 2013})
15... Rae8 {[%emt 0:08:04][%cal Rg6e4]} 16. f3 {[%emt 0:00:51]} f5 {[%emt 0:00:
00]} 17. Nf2 {[%emt 0:00:13]} (17. Qb3+ Bf7 18. Qxb7 fxe4 19. Nxe4 Nb6 20. Qxe7
Rxe7 $17) 17... Qxe3 {[%emt 0:03:03]} 18. Qb3+ {[%emt 0:00:14]} Rf7 {[%emt 0:
00:00]} (18... Bf7 $5 {[%cal Rf7b3]} 19. Qxb7 Nb6 $11) 19. Qxb7 {[%emt 0:02:16]
} Ne5 $1 {[%emt 0:00:30]} 20. Qb3 {[%emt 0:02:17]} Nd7 (20... Qxd4 $11 {
remains equal.} 21. Rad1 Qc5) 21. Qb7 {[%emt 0:00:00]} (21. h3 $16) 21... Ne5
$1 $11 {[%emt 0:10:48]} 22. Qb3 {[%emt 0:13:21]} Qxd4 {[%emt 0:00:08]} 23. Rfe1
{[%emt 0:04:08][%cal Yf1e1,Ye1e2,Ye2d2,Yd2d6] Black must now prevent Rad1.}
Ree7 {[%emt 0:01:08]} 24. Rad1 {[%emt 0:20:28]} Qb6 {[%emt 0:00:34]} 25. Qxb6 {
[%emt 0:04:27]} axb6 {[%emt 0:00:03]} 26. Re2 {[%emt 0:00:10]} Nd7 {[%emt 0:06:
30]} 27. Red2 {[%emt 0:00:38]} Nf6 {[%emt 0:00:57]} 28. Rd6 {[%emt 0:04:24]}
Rc7 {[%emt 0:00:23]} 29. Na4 {[%emt 0:03:51]} b5 {[%emt 0:00:00]} 30. Nc5 {
[%emt 0:00:10]} Rfe7 {[%emt 0:00:54]} 31. Nfd3 {[%emt 0:01:46]} Bf7 {[%emt 0:
01:07]} 32. Nb4 {[%emt 0:01:29]} Re2 {[%emt 0:01:46]} 33. R6d2 {[%emt 0:04:52]}
Rxd2 {[%emt 0:01:30]} 34. Rxd2 {[%emt 0:00:02]} Nd5 {[%emt 0:00:00]} 35. Nbd3 {
[%emt 0:01:12]} Re7 {[%emt 0:01:08]} 36. Kf2 {[%emt 0:00:07]} Kf8 {[%emt 0:00:
31]} 37. b3 {[%emt 0:00:33]} g5 {[%emt 0:01:28]} 38. Rc2 {[%emt 0:03:18]} Ne3 {
[%emt 0:01:54]} 39. Rc1 {[%emt 0:00:09]} Nd5 {[%emt 0:00:00] Prevents Nb4.} 40.
a4 {[%emt 0:02:23]} Ra7 $1 {[%emt 0:01:14]} 41. Ne5 {[%emt 0:30:30]} Nb4 {
[%emt 0:00:17]} 42. h4 {[%emt 0:01:14]} Bd5 {[%emt 0:00:00]} 43. hxg5 {[%emt 0:
00:31]} hxg5 {[%emt 0:00:02]} 44. Ke3 {[%emt 0:04:46]} Ke7 {[%emt 0:22:25]} 45.
Ned3 {[%emt 0:00:00] Pair of Knights!} (45. Kd4 {seems wilder.} Kd6 46. a5 f4
47. Ned3) 45... f4+ {[%emt 0:04:55]} 46. Kd4 {[%emt 0:00:00]} Nxd3 {[%emt 0:00:
00]} 47. Kxd3 {[%emt 0:00:10] Endgame KRB-KRN} Kd6 {[%emt 0:00:00]} 48. a5 {
[%emt 0:00:00]} g4 {[%emt 0:00:00]} 49. b4 {[%emt 0:00:00]} gxf3 {[%emt 0:01:
26]} 50. gxf3 {[%emt 0:00:00]} Re7 {[%emt 0:00:37]} 51. Kd4 {[%emt 0:00:00]}
Bxf3 {[%emt 0:00:59]} 52. Rf1 {[%emt 0:00:00]} Re3 {[%emt 0:00:26]} 53. a6 {
[%emt 0:00:00] White has compensation.} Ra3 {[%emt 0:00:38] Against Ra1} 54.
Rg1 {[%emt 0:00:00] Rg7 is the strong threat.} Ra2 {[%emt 0:01:23]} (54... Kc7
$1 $11) 55. Rg7 $14 {[%emt 0:00:00][%csl Gc5][%cal Rg7d7]} Rd2+ {[%emt 0:00:09]
} 56. Kc3 $1 {[%emt 0:00:00]} Ra2 {[%emt 0:00:17]} 57. Rd7+ {[%emt 0:00:41]}
Ke5 {[%emt 0:00:00]} 58. Rd2 {[%emt 0:02:21]} (58. Kb3 $5 {[%cal Rb3a2]} Rh2
59. a7 $16) 58... Ra1 {[%emt 0:01:10]} 59. Kb2 {[%emt 0:00:08]} Rh1 {[%emt 0:
00:25]} 60. a7 {[%emt 0:03:20]} Rh8 {[%emt 0:00:06]} 61. Nd7+ {[%emt 0:01:48]}
Kf5 $1 {[%emt 0:00:00] aiming for ...Ra8.} 62. Nb6 {[%emt 0:00:07] Inhibits
Ra8.} c5 $1 {[%emt 0:00:18]} 63. bxc5 {[%emt 0:00:04]} Be4 {[%emt 0:01:06]} 64.
Kc3 {[%emt 0:00:46]} f3 $1 {[%emt 0:00:23]} 65. Kb4 {[%emt 0:00:02]} Bc6 {
[%emt 0:00:00]} 66. Ra2 {[%emt 0:01:43]} Ke4 {[%emt 0:00:00]} 67. a8=Q {
[%emt 0:00:54]} Bxa8 {[%emt 0:00:00]} 68. Nxa8 {[%emt 0:00:17]} Ke3 $2 {
[%emt 0:00:12] A mistake that costs the game.} (68... Rf8 $11) 69. Nb6 $1 $18 {
[%emt 0:00:00]} (69. Kxb5 f2 70. Rxf2 Kxf2 $11) 69... f2 $2 {[%emt 0:00:00]} (
69... Rh1 70. Nd5+ (70. Kxb5 Rb1+ 71. Ka5 Rc1 $11) 70... Ke4) 70. Nd5+ $1 {
[%emt 0:00:14] White is clearly winning.} (70. Ra1 Ke2 $11) 70... Kf3 {[%emt 0:
00:22] [#]} 71. Ra3+ $1 {[%emt 0:00:10]} ({Worse is} 71. Ra1 Rh4+ 72. Kxb5 Re4
$11) 71... Ke4 {[%emt 0:01:06] [#]} 72. Nc3+ $1 {[%emt 0:00:43]} ({Weaker is} 
72. Ne3 Rh1 73. c6 (73. Kxb5 Re1 $11) 73... Rb1+ 74. Ka5 (74. Kc5 b4 $11) 74...
b4 $11) 72... Kf5 {[%emt 0:00:45] Weighted Error Value: White=0.12 (very
precise) /Black=0.10 (very precise)} 1-0

[Event "44th Chess Olympiad Open 2022"]
[Site "Chennai"]
[Date "2022.07.30"]
[Round "2.14"]
[White "Ziska, Helgi Dam"]
[Black "Abdusattorov, Nodirbek"]
[Result "0-1"]
[WhiteElo "2549"]
[BlackElo "2688"]
[Annotator "TA"]
[PlyCount "62"]
[EventDate "2022.??.??"]
[TimeControl "60"]

{[%evp 16,62,34,20,25,0,0,0,0,0,0,0,0,-18,14,23,40,14,23,45,33,0,8,0,0,-4,18,0,
0,0,30,20,12,11,66,-118,-63,-71,-106,-66,-79,-730,-731,-716,-659,-1639,-1647,
-29986,-29987]} 1. e4 {[%emt 0:00:09]} c5 {[%emt 0:00:24]} 2. Nf3 {[%emt 0:00:
00]} Nc6 {[%emt 0:00:20]} 3. Bb5 {[%emt 0:02:15]} e6 {[%emt 0:00:15]} 4. O-O {
[%emt 0:06:44]} Nge7 {[%emt 0:00:21]} 5. c3 {[%emt 0:04:01]} a6 {[%emt 0:00:19]
} 6. Ba4 {[%emt 0:00:25]} b5 {[%emt 0:00:08]} 7. Bc2 {[%emt 0:00:05]} Bb7 {
[%emt 0:00:03]} 8. Re1 {[%emt 0:04:06]} Rc8 {[%emt 0:02:27]} 9. a4 {[%emt 0:00:
00]} Ng6 {[%emt 0:13:30] B30: Sicilian: 2...Nc6 3 Bb5, lines without ...g6.}
10. Na3 {[%emt 0:05:12]} b4 {[%emt 0:03:27]} 11. Nc4 {[%emt 0:00:24]} Na5 {
[%emt 0:01:25] The position is equal.} 12. Nxa5 {[%emt 0:19:46]} Qxa5 {[%emt 0:
00:00] [#]} 13. d4 $146 {[%emt 0:01:52]} ({Predecessor:} 13. cxb4 Qxb4 14. b3
Be7 15. Bb2 O-O 16. h4 Bxh4 17. Nxh4 Nxh4 18. Bc3 Qb6 19. Qh5 {0-1 (39) Nedev,
T (2500)-Vallejo Pons,F (2694) Batumi 2019}) 13... c4 {[%emt 0:00:26]} 14. Be3
{[%emt 0:12:21][%cal Yd4d5]} b3 {[%emt 0:00:45]} 15. Bb1 {[%emt 0:00:05]} Be7 {
[%emt 0:05:57]} 16. Nd2 {[%emt 0:00:42]} O-O {[%emt 0:01:01]} 17. Qe2 {[%emt 0:
00:00]} Qc7 {[%emt 0:02:46]} 18. Qh5 {[%emt 0:01:23] Against f5} (18. Qg4 {
seems wilder.} Nh4 19. Bf4 d6 20. g3) 18... f6 {[%emt 0:08:58]} 19. a5 {
[%emt 0:01:10]} Qc6 {[%emt 0:01:52]} 20. f4 {[%emt 0:11:04]} Bd6 {[%emt 0:00:
00]} 21. f5 {[%emt 0:02:47]} exf5 {[%emt 0:02:56]} 22. Qxf5 {[%emt 0:00:22]}
Rfe8 {[%emt 0:01:28]} 23. Qg4 {[%emt 0:03:38]} Bb8 {[%emt 0:05:24]} 24. h4 {
[%emt 0:01:22]} Qc7 {[%emt 0:01:25]} (24... Ne7 $11) 25. h5 $2 {[%emt 0:02:32]}
({Stronger than} 25. e5 fxe5 26. Bxg6 hxg6 $17) (25. Nf1 $1 $14 {keeps the
upper hand.}) 25... f5 {[%emt 0:02:38]} (25... Qh2+ $17 26. Kf1 f5) 26. Qh3 $15
{[%emt 0:00:53] [#]} Nf4 $36 {[%emt 0:00:23] Black is in control.} ({Much
weaker is} 26... Qg3 27. Qxg3 Bxg3 28. Rf1 $11) 27. Qh4 {[%emt 0:03:06]} fxe4 {
[%emt 0:04:41] Black is much more active.} 28. Nxe4 $2 {[%emt 0:07:29] Loses
the game.} Nxg2 $19 {[%emt 0:00:10]} ({Weaker is} 28... Bxe4 29. Bxf4 Qc6 30.
Bxb8 Bxb1 31. Be5 $14) 29. Kxg2 {[%emt 0:00:04]} Bxe4+ {[%emt 0:01:00]
Deflection} 30. Bxe4 {[%emt 0:00:06] [#]} Rxe4 $1 {[%emt 0:00:10]} 31. Qxe4 {
[%emt 0:00:08]} (31. Qh3 Rf8) 31... Qh2+ {[%emt 0:00:14] Skewer, Double Attack.
Weighted Error Value: White=0.91/Black=0.10 (very precise)} 0-1

[Event "44th Chess Olympiad Open 2022"]
[Site "Chennai"]
[Date "2022.07.30"]
[Round "2.14"]
[White "Egilstoft, Rogvi"]
[Black "Sindarov, Javokhir"]
[Result "0-1"]
[WhiteElo "2284"]
[BlackElo "2629"]
[Annotator "TA"]
[PlyCount "118"]
[EventDate "2022.??.??"]
[TimeControl "60"]

{[%evp 21,118,-5,0,10,19,11,0,0,17,20,16,-10,7,0,0,0,0,0,0,0,30,12,14,0,43,56,
110,98,96,93,100,89,125,0,0,0,0,0,0,0,0,-83,-83,-117,-116,-112,-115,-108,-110,
-94,-103,-114,-125,-146,-118,-131,-134,-139,-126,-131,-116,-209,-222,-214,-212,
-185,-193,-185,-185,-318,-318,-309,-274,-271,-254,-539,-529,-677,-663,-693,
-439,-1127,-1098,-2745,-2900,-9497,-7375,-29968,-29969,-29972,-29973,-29976,
-29977,-29976,-29979,-29980,-29981,-29987,-29988]} 1. e4 {[%emt 0:00:08]} e5 {
[%emt 0:00:20]} 2. Bc4 {[%emt 0:00:51]} Nf6 {[%emt 0:04:35]} 3. d4 {[%emt 0:00:
00]} exd4 {[%emt 0:07:21]} 4. Nf3 {[%emt 0:00:30]} Nc6 {[%emt 0:02:20]} 5. e5 {
[%emt 0:02:35]} d5 {[%emt 0:05:46]} 6. Bb5 {[%emt 0:00:50]} Ne4 {[%emt 0:00:08]
} 7. Nxd4 {[%emt 0:02:37]} Bd7 {[%emt 0:00:04]} 8. Bxc6 {[%emt 0:02:01]} bxc6 {
[%emt 0:00:06]} 9. O-O {[%emt 0:00:39]} Bc5 {[%emt 0:00:21]} 10. Be3 {[%emt 0:
00:00]} Bb6 {[%emt 0:01:57]} 11. f3 {[%emt 0:07:30]} Ng5 {[%emt 0:04:21]} 12.
f4 {[%emt 0:06:41] C56: Two Knights: 4 d4 exd4 5 0-0 Nxe4.} c5 {[%emt 0:20:28]}
13. fxg5 {[%emt 0:03:36] Nf5 is the strong threat.} cxd4 {[%emt 0:00:32]} 14.
Bxd4 {[%emt 0:00:56] The position is equal.} Be6 {[%emt 0:04:32] [#]} 15. Bxb6
$146 {[%emt 0:12:12]} ({Predecessor:} 15. Qd2 h6 16. g6 fxg6 17. Bxb6 axb6 18.
Na3 Qd7 19. Rad1 Rf8 20. Rxf8+ Kxf8 21. c4 {½-½ (49) Atabayev,Y (2470)
-Kovalev,V (2598) Budapest 2017}) 15... axb6 {[%emt 0:00:26]} 16. Nc3 {[%emt 0:
00:00]} O-O {[%emt 0:01:33]} 17. Qd2 {[%emt 0:05:30]} d4 {[%emt 0:12:37]} 18.
Ne2 {[%emt 0:01:05][%cal Yc3e2,Ye2g3,Yg3e4,Ye4d6,Yd6c4]} c5 {[%emt 0:00:00]}
19. a3 {[%emt 0:05:39]} Qd5 {[%emt 0:10:38]} 20. Qf4 {[%emt 0:02:12]} Rad8 {
[%emt 0:02:28]} 21. h4 {[%emt 0:09:44]} Rfe8 {[%emt 0:06:13][%cal Yf8e8,Ye8e7,
Ye7c7,Yc7c1]} 22. Ng3 {[%emt 0:00:40]} Bc8 {[%emt 0:00:50]} 23. Rae1 {[%emt 0:
01:58]} c4 {[%emt 0:00:17]} (23... Qe6 $14) 24. Ne4 $16 {[%emt 0:00:00]} d3 {
[%emt 0:01:57]} 25. cxd3 {[%emt 0:00:37]} cxd3 {[%emt 0:01:11]} 26. Nd6 {
[%emt 0:03:59]} Re7 {[%emt 0:00:07]} (26... d2 $2 27. Rd1 $18) 27. Qc4 {
[%emt 0:07:56]} ({White should play} 27. Rd1 $16) 27... Qxc4 $1 $11 {[%emt 0:
00:00] Dancing on a razor blade.} 28. Nxc4 {[%emt 0:00:01]} Be6 {[%emt 0:02:15]
} 29. Nd2 {[%emt 0:01:02]} Rc7 {[%emt 0:00:37]} 30. Rf2 {[%emt 0:00:30]} Bg4 {
[%emt 0:06:15]} 31. e6 {[%emt 0:00:41]} (31. Rf4 $11 Be2 32. Kf2) 31... fxe6
$17 {[%emt 0:00:31] White must now prevent ...Be2. Black converts the
advantage convincingly.} 32. Nf3 {[%emt 0:00:13]} Bxf3 {[%emt 0:02:24]} 33.
gxf3 {[%emt 0:00:01] Endgame KRR-KRR} d2 {[%emt 0:00:04]} 34. Rd1 {[%emt 0:00:
10]} Rc1 {[%emt 0:00:05]} 35. Rff1 {[%emt 0:00:13]} Rc2 {[%emt 0:00:00] Black
is much more active. The white rooks are badly placed.} 36. b4 {[%emt 0:00:27]}
Kf7 {[%emt 0:00:52]} 37. Kf2 {[%emt 0:00:37]} Ra2 {[%emt 0:00:00]} 38. Ke2 {
[%emt 0:00:21]} Kg6 {[%emt 0:00:16]} 39. f4 {[%emt 0:01:19]} Kf5 {[%emt 0:01:
36]} 40. Rf3 {[%emt 0:00:37]} Rd4 {[%emt 0:00:34]} 41. h5 {[%emt 0:00:00] [#]}
(41. Rd3 $17 {keeps fighting.} Rxd3 42. Kxd3) 41... Re4+ $1 $19 {[%emt 0:06:32]
} (41... Rxf4 42. Rxf4+ Kxf4 43. Rxd2 Rxa3 44. Rd7 $15) 42. Re3 {[%emt 0:00:21]
} Rxe3+ {[%emt 0:00:12]} (42... Rxf4 43. Rxd2 Rf2+ 44. Kxf2 $17) ({Inferior is
} 42... Kxf4 43. Rf1+ Ke5 44. Rxe4+ Kxe4 45. Rf7 $15) 43. Kxe3 {[%emt 0:00:02]}
Rxa3+ {[%emt 0:00:05]} 44. Kxd2 {[%emt 0:00:32]} Kxf4 {[%emt 0:00:00] KR-KR}
45. Kc2 {[%emt 0:09:39]} (45. g6 $142 hxg6 46. hxg6) 45... Kxg5 {[%emt 0:00:42]
} 46. Rd7 {[%emt 0:00:35]} Kh6 {[%emt 0:00:32]} ({Worse is} 46... Kxh5 47. Rxg7
h6 48. Rb7 $11) 47. Rb7 {[%emt 0:01:12]} Ra8 {[%emt 0:00:18]} ({And not} 47...
Kxh5 48. Rxg7 h6 49. Rb7 $15) 48. Rxb6 $2 {[%emt 0:00:26]} (48. b5) 48... Kxh5
{[%emt 0:00:06]} 49. Rxe6 {[%emt 0:00:17]} Rb8 {[%emt 0:03:55]} 50. Re7 {
[%emt 0:00:16]} Kg6 {[%emt 0:00:55]} 51. Kc3 {[%emt 0:00:35]} (51. Re4 $142 h5
52. Kd3) 51... h5 {[%emt 0:00:15] Hoping for ...h4.} 52. Re1 {[%emt 0:00:00]}
h4 {[%emt 0:00:37]} 53. Rb1 {[%emt 0:00:21]} Kh5 {[%emt 0:01:07]} 54. b5 {
[%emt 0:00:57]} h3 {[%emt 0:00:47] Black mates.} 55. Kd3 {[%emt 0:00:37]} Kh4 {
[%emt 0:02:24]} 56. b6 {[%emt 0:04:41]} h2 {[%emt 0:00:29]} 57. b7 {[%emt 0:00:
20] [#]} Rxb7 $3 {[%emt 0:00:10]} 58. Rxb7 {[%emt 0:00:04]} h1=Q {[%emt 0:00:
05]} 59. Rxg7 {[%emt 0:00:07]} Qd5+ {[%emt 0:00:04] Weighted Error Value:
White=0.67/Black=0.05 (flawless)} 0-1

[Event "44th Chess Olympiad Open 2022"]
[Site "Chennai"]
[Date "2022.07.30"]
[Round "2.15"]
[White "Moussard, Jules"]
[Black "Stanojoski, Zvonko"]
[Result "1-0"]
[WhiteElo "2672"]
[BlackElo "2412"]
[Annotator "TA"]
[PlyCount "77"]
[EventDate "2022.??.??"]
[TimeControl "60"]

{[%evp 26,77,65,63,58,15,13,-35,-47,-33,-10,-14,-8,-19,-18,-27,-22,-26,-31,-15,
0,-8,4,0,33,27,35,33,41,38,35,31,70,71,78,65,164,164,220,203,244,186,216,183,
245,245,245,242,278,276,419,408,636,617]} 1. e4 {[%emt 0:00:03]} c5 {[%emt 0:
00:00]} 2. Nf3 {[%emt 0:00:06]} d6 {[%emt 0:00:20]} 3. d4 {[%emt 0:00:09]} cxd4
{[%emt 0:00:05]} 4. Nxd4 {[%emt 0:00:06]} Nf6 {[%emt 0:00:06]} 5. Nc3 {[%emt 0:
00:00]} g6 {[%emt 0:00:16]} 6. Be3 {[%emt 0:00:52]} Bg7 {[%emt 0:00:07]} 7. f3
{[%emt 0:01:12]} Nc6 {[%emt 0:00:26]} 8. Qd2 {[%emt 0:00:58]} O-O {[%emt 0:00:
00]} 9. O-O-O {[%emt 0:00:17]} Nxd4 {[%emt 0:02:28]} 10. Bxd4 {[%emt 0:00:14]}
Be6 {[%emt 0:00:06]} 11. Kb1 {[%emt 0:05:09]} Qc7 {[%emt 0:06:05]} 12. g4 {
[%emt 0:03:32]} Rfc8 {[%emt 0:00:00]} 13. h4 {[%emt 0:07:17]} Qa5 {[%emt 0:00:
00]} 14. a3 {[%emt 0:03:17][%cal Yh4h5]} Rab8 {[%emt 0:08:00] B76: Sicilian
Dragon: Yugoslav Attack, 9 g4 and 9 0-0-0.} 15. Rh2 $5 {[%emt 0:23:55][%cal
Yh4h5] An interesting side line.} b5 {[%emt 0:07:05] [#]} 16. Bxf6 $146 {
[%emt 0:02:31]} (16. Nd5 $11 Qxd2 17. Rhxd2 Bxd5 18. exd5) ({Predecessor:} 16.
Nd5 Qxd2 17. Rhxd2 Bxd5 18. exd5 a5 19. Re2 Rc7 20. Ree1 Rcb7 21. Bf2 Kf8 22.
h5 {½-½ (31) Silin,V (2184)-Krzyzanowski,A (2270) ICCF email 2009}) 16...
Bxf6 $15 {[%emt 0:01:46] Black is slightly better.} 17. Nd5 {[%emt 0:01:18]}
Qxd2 {[%emt 0:00:11]} 18. Nxf6+ {[%emt 0:00:07]} Kg7 {[%emt 0:00:20][%cal
Rd2d1] [#]} 19. Ne8+ {[%emt 0:05:41]} Rxe8 {[%emt 0:00:12][%cal Rd2d1]} 20.
Rdxd2 {[%emt 0:00:19]} b4 {[%emt 0:00:27]} 21. axb4 {[%emt 0:01:02]} Rxb4 {
[%emt 0:07:06]} 22. c3 {[%emt 0:00:04]} Rb3 {[%emt 0:04:08]} 23. Rd4 {[%emt 0:
00:00]} Reb8 {[%emt 0:00:24] And now ...Rxc3 would win.} 24. Kc1 {[%emt 0:00:
00]} h6 {[%emt 0:03:26]} 25. Ra4 {[%emt 0:06:44]} R8b7 {[%emt 0:02:16]} 26. Ra5
{[%emt 0:00:51]} Rc7 {[%emt 0:00:37]} 27. Rd2 {[%emt 0:03:06]} Rb6 {[%emt 0:00:
00]} 28. Be2 {[%emt 0:03:00]} Rbc6 {[%emt 0:03:55]} 29. Rd4 {[%emt 0:00:17]
White is more active.} Rc5 {[%emt 0:00:19] [#]} 30. Rda4 {[%emt 0:00:46]} g5 {
[%emt 0:03:56]} (30... Bd7 $14) 31. hxg5 $18 {[%emt 0:01:00]} ({Of course not} 
31. Rxa7 $6 gxh4 32. Rxc7 Rxc7 $11) 31... hxg5 {[%emt 0:02:45]} (31... Rxa5
$142 32. gxh6+ (32. Rxa5 hxg5 33. Rxg5+ Kf8 $16) 32... Kxh6 33. Rxa5 f6) 32.
Rxa7 {[%emt 0:00:11]} Rc8 {[%emt 0:02:52]} 33. Ra8 {[%emt 0:02:38]} Kf6 {
[%emt 0:00:37]} 34. Kd2 {[%emt 0:00:35]} Ke5 {[%emt 0:00:32]} (34... R8c7 {
was worth a try.} 35. Ra3 Rc8 36. Rxc8 Rxc8) 35. Rxc8 {[%emt 0:01:25]} Rxc8 {
[%emt 0:00:29]} 36. Ke3 {[%emt 0:00:06]} Rc5 {[%emt 0:00:42]} 37. Ra7 {[%emt 0:
00:00]} Kf6 {[%emt 0:00:08]} (37... Rc8 {keeps fighting.} 38. Rxe7 Rb8) 38. Kd4
{[%emt 0:00:17]} Bb3 {[%emt 0:00:13]} (38... Rc8 $142 39. b4 Rh8) 39. c4 {
[%emt 0:02:16] Weighted Error Value: White=0.08 (flawless) /Black=0.39} 1-0